bitfinex-derivatives/quotes_BTCF0:USTF0_20251110
["timestamp","ask_amount","ask_price","bid_price","bid_amount"]
[1762763751541,0.88840956,106080.0,106070.0,0.01219803]
[1762763751940,0.88840956,106080.0,106070.0,0.03382803]
[1762763752341,0.88840956,106080.0,106070.0,0.05482803]
[1762763755139,0.88840956,106080.0,106070.0,0.06802803]
[1762763758945,0.98665536,106080.0,106070.0,0.06802803]
[1762763760143,1.34745536,106080.0,106070.0,0.06802803]
[1762763765549,1.36921723,106080.0,106070.0,0.05482803]
[1762763766543,1.36921723,106080.0,106070.0,0.06802803]
[1762763767149,1.36921723,106080.0,106070.0,0.01]
[1762763768552,1.36921723,106080.0,106070.0,0.01219803]
[1762763771247,1.36921723,106080.0,106070.0,0.03382803]
[1762763771449,1.36921723,106080.0,106070.0,0.01219803]
[1762763771753,1.36921723,106080.0,106070.0,0.05482803]
[1762763771953,1.36921723,106080.0,106070.0,0.06802803]
[1762763772452,1.36921723,106080.0,106070.0,0.05482803]
[1762763773344,1.36921723,106080.0,106070.0,0.06802803]
[1762763773544,1.27650545,106080.0,106070.0,0.16049981]
[1762763773758,1.27650545,106080.0,106070.0,0.06802803]
[1762763774054,1.27650545,106080.0,106070.0,0.16049981]
[1762763774458,1.27650545,106080.0,106070.0,0.06802803]
[1762763774760,1.36897723,106080.0,106070.0,0.06802803]
[1762763774957,1.27649662,106080.0,106070.0,0.06802803]
[1762763776456,1.25473475,106080.0,106070.0,0.06802803]
[1762763778254,0.74214,106080.0,106070.0,0.25479158]
[1762763778454,1.0679,106080.0,106070.0,0.25479158]
[1762763778853,0.74214,106080.0,106070.0,0.32227204]
[1762763779048,1.0679,106080.0,106070.0,0.25479158]
[1762763779254,1.1621917,106080.0,106070.0,0.25479158]
[1762763779749,0.8013917,106080.0,106070.0,0.16049098]
[1762763779948,0.8013917,106080.0,106070.0,0.25479158]
[1762763780160,0.7071,106080.0,106070.0,0.25479158]
[1762763780367,0.38134,106080.0,106070.0,0.25479158]
[1762763780550,0.38134,106080.0,106070.0,0.32262405]
[1762763780551,0.70718,106080.0,106070.0,0.32262405]
[1762763781560,0.8014718,106080.0,106070.0,0.32262405]
[1762763782660,0.4756318,106080.0,106070.0,0.32262405]
[1762763782962,0.8014318,106080.0,106070.0,0.32262405]
[1762763783155,0.70714,106080.0,106070.0,0.32262405]
[1762763783349,0.8014318,106080.0,106070.0,0.32262405]
[1762763783556,0.4406318,106080.0,106070.0,0.32262405]
[1762763784264,0.4406318,106080.0,106070.0,0.2301611]
[1762763784463,0.4406318,106080.0,106070.0,0.32262405]
[1762763784757,0.34634,106080.0,106070.0,0.32262405]
[1762763784960,0.02054,106080.0,106070.0,0.32262405]
[1762763785262,0.3463,106080.0,106070.0,0.32262405]
[1762763785855,0.3463,106080.0,106070.0,0.25479158]
[1762763786165,0.4405918,106080.0,106070.0,0.25479158]
[1762763787262,0.4405918,106080.0,106070.0,0.16232863]
[1762763787455,0.53305475,106080.0,106070.0,0.06802803]
[1762763787652,0.53305475,106080.0,106070.0,0.16232863]
[1762763788267,0.53305475,106080.0,106070.0,0.2300838]
[1762763788454,0.89385475,106080.0,106070.0,0.1357832]
[1762763788654,0.89385475,106080.0,106070.0,0.2300838]
[1762763790164,0.89385475,106080.0,106070.0,0.1357832]
[1762763790767,0.9863177,106080.0,106070.0,0.0799532]
[1762763791259,0.9863177,106080.0,106070.0,0.1228732]
[1762763791569,0.89385475,106080.0,106070.0,0.1228732]
[1762763791769,0.89385475,106080.0,106070.0,0.1366932]
[1762763793767,0.79956295,106080.0,106070.0,0.2309938]
[1762763794080,0.89385465,106080.0,106070.0,0.1366932]
[1762763795663,0.89385465,106080.0,106070.0,0.06893803]
[1762763798574,0.89385465,106080.0,106070.0,0.16323863]
[1762763798976,0.89385465,106080.0,106070.0,0.06893803]
[1762763799678,0.79956295,106080.0,106070.0,0.16323863]
[1762763800079,0.79956295,106080.0,106070.0,0.2309938]
[1762763802276,0.7071,106080.0,106070.0,0.2309938]
[1762763802481,0.79956295,106080.0,106070.0,0.2309938]
[1762763803476,0.7071,106080.0,106070.0,0.2309938]
[1762763804369,0.7071,106080.0,106070.0,0.32345675]
[1762763804769,0.7071,106080.0,106070.0,0.2309938]
[1762763804770,0.8013917,106080.0,106070.0,0.2309938]
[1762763805076,0.7071,106080.0,106070.0,0.2309938]
[1762763805883,0.7071,106080.0,106070.0,0.32345675]
[1762763806180,0.3463,106080.0,106070.0,0.32345675]
[1762763806377,0.3463,106080.0,106070.0,0.25570158]
[1762763806883,0.33753,106080.0,106070.0,0.25570158]
[1762763807178,0.3463,106080.0,106070.0,0.25570158]
[1762763807380,0.4405917,106080.0,106070.0,0.61650158]
[1762763808176,0.3463,106080.0,106070.0,0.61650158]
[1762763809783,0.4405917,106080.0,106070.0,0.61650158]
[1762763810276,0.3463,106080.0,106070.0,0.61650158]
[1762763811472,0.4405917,106080.0,106070.0,0.61650158]
[1762763812572,0.3463,106080.0,106070.0,0.76390158]
[1762763812986,0.4405917,106080.0,106070.0,0.76390158]
[1762763814683,0.3463,106080.0,106070.0,0.76390158]
[1762763815882,0.33753,106080.0,106070.0,0.76390158]
[1762763816079,0.3463,106080.0,106070.0,0.76390158]
[1762763816279,0.4405918,106080.0,106070.0,0.67143863]
[1762763816482,0.3463,106080.0,106070.0,0.76390158]
[1762763818491,0.4405917,106080.0,106070.0,0.76390158]
[1762763819172,0.4405917,106080.0,106070.0,0.84851303]
[1762763820580,0.8013917,106080.0,106070.0,0.48771303]
[1762763820778,0.4405917,106080.0,106070.0,0.39525008]
[1762763820980,0.4405917,106080.0,106070.0,0.75605008]
[1762763821180,0.53305465,106080.0,106070.0,0.75605008]
[1762763822889,0.4405917,106080.0,106070.0,0.67143863]
[1762763824485,0.3463,106080.0,106070.0,0.67143863]
[1762763824792,0.4405917,106080.0,106070.0,0.76390158]
[1762763825192,0.4405917,106080.0,106070.0,0.67143863]
[1762763827189,0.3463,106080.0,106070.0,0.67143863]
[1762763828294,0.4405917,106080.0,106070.0,0.67143863]
[1762763828886,0.4405917,106080.0,106070.0,0.31063863]
[1762763829387,0.89385465,106080.0,106070.0,0.31063863]
[1762763829599,0.89385465,106080.0,106070.0,0.28414092]
[1762763829785,0.9863176,106080.0,106070.0,0.21633803]
[1762763830086,0.89385465,106080.0,106070.0,0.21633803]
[1762763830994,0.89385465,106080.0,106070.0,0.06893803]
[1762763832697,0.89385465,106080.0,106070.0,0.16323863]
[1762763833598,0.89385465,106080.0,106070.0,0.06893803]
[1762763834793,0.89385465,106080.0,106070.0,0.07780289]
[1762763834999,0.0943006,106070.0,106060.0,0.01028777]
[1762763835299,0.64006652,106070.0,106060.0,0.01028777]
[1762763837001,0.64206652,106070.0,106060.0,0.01128777]
[1762763837298,0.64306652,106070.0,106060.0,0.01628777]
[1762763837597,0.64206652,106070.0,106060.0,0.01128777]
[1762763837800,0.64306652,106070.0,106060.0,0.01628777]
[1762763839600,0.64306652,106070.0,106060.0,0.00609023]
[1762763840602,0.64306652,106070.0,106060.0,0.00828826]
[1762763841895,0.55058356,106070.0,106060.0,0.03157826]
[1762763842097,1.40418356,106070.0,106060.0,0.06621826]
[1762763842296,0.87594356,106070.0,106060.0,0.06621826]
[1762763842496,0.55058356,106070.0,106060.0,0.06621826]
[1762763842698,0.87594356,106070.0,106060.0,0.06621826]
[1762763844500,0.55058356,106070.0,106060.0,0.06621826]
[1762763844700,0.87594356,106070.0,106060.0,0.15870122]
[1762763844902,0.87594356,106070.0,106060.0,0.06621826]
[1762763845998,0.87594356,106070.0,106060.0,0.16052776]
[1762763846304,0.87594356,106070.0,106060.0,0.34549368]
[1762763846305,0.68916,106070.0,106060.0,0.34549368]
[1762763846902,0.68916,106070.0,106060.0,0.25301072]
[1762763847202,0.003,106070.0,106060.0,0.41329657]
[1762763847397,0.3284,106070.0,106060.0,0.41329657]
[1762763847700,0.3284,106070.0,106060.0,0.77409657]
[1762763848988,0.4227006,106070.0,106060.0,0.77409657]
[1762763850904,0.4227006,106070.0,106060.0,0.58913065]
[1762763851203,0.4227006,106070.0,106060.0,0.77409657]
[1762763852607,0.51518356,106070.0,106060.0,0.22650411]
[1762763852907,0.51518356,106070.0,106060.0,0.25301072]
[1762763854305,0.51518356,106070.0,106060.0,0.32081361]
[1762763855607,0.51518356,106070.0,106060.0,0.25301072]
[1762763855809,0.51518356,106070.0,106060.0,0.15870122]
[1762763856005,0.4227006,106070.0,106060.0,0.25301072]
[1762763856199,0.42088296,106070.0,106060.0,0.25301072]
[1762763856594,0.42088296,106070.0,106060.0,0.32081361]
[1762763857203,0.42088296,106070.0,106060.0,0.22833065]
[1762763857506,0.42088296,106070.0,106060.0,0.32081361]
[1762763857805,0.3284,106070.0,106060.0,0.32081361]
[1762763858105,0.3284,106070.0,106060.0,0.41329657]
[1762763858405,0.3284,106070.0,106060.0,0.32081361]
[1762763858600,0.3284,106070.0,106060.0,0.41329657]
[1762763859408,0.4227006,106070.0,106060.0,0.32081361]
[1762763859607,0.4227006,106070.0,106060.0,0.41329657]
[1762763859910,0.4227006,106070.0,106060.0,0.32081361]
[1762763860810,0.4227006,106070.0,106060.0,0.25301072]
[1762763863009,0.4227006,106070.0,106060.0,0.16052776]
[1762763863208,0.4227006,106070.0,106060.0,0.25301072]
[1762763863209,0.51518356,106070.0,106060.0,0.25301072]
[1762763863509,0.51518356,106070.0,106060.0,0.32078421]
[1762763866305,0.87598356,106070.0,106060.0,0.13399175]
[1762763867115,0.78168296,106070.0,106060.0,0.22830125]
[1762763867303,0.87598356,106070.0,106060.0,0.22830125]
[1762763867603,0.78168296,106070.0,106060.0,0.32078421]
[1762763868007,0.87598356,106070.0,106060.0,0.32078421]
[1762763868208,0.87598356,106070.0,106060.0,0.22830125]
[1762763868402,0.87598356,106070.0,106060.0,0.32078421]
[1762763869798,0.78168296,106070.0,106060.0,0.32078421]
[1762763869997,0.42088296,106070.0,106060.0,0.25301072]
[1762763870503,0.51518356,106070.0,106060.0,0.32082012]
[1762763871916,0.42088296,106070.0,106060.0,0.32082012]
[1762763872507,0.51518356,106070.0,106060.0,0.32082012]
[1762763872814,0.42088296,106070.0,106060.0,0.32082012]
[1762763873016,0.51518356,106070.0,106060.0,0.32082012]
[1762763875818,0.51518356,106070.0,106060.0,0.22651062]
[1762763877115,0.3284,106070.0,106060.0,0.32082012]
[1762763877314,0.42088296,106070.0,106060.0,0.32082012]
[1762763877915,0.51518356,106070.0,106060.0,0.32082012]
[1762763878117,0.51518356,106070.0,106060.0,0.25301072]
[1762763879023,0.51518356,106070.0,106060.0,0.16052776]
[1762763879213,0.51518356,106070.0,106060.0,0.25301072]
[1762763882421,0.51518356,106070.0,106060.0,0.33762217]
[1762763885415,0.51518356,106070.0,106060.0,0.25301072]
[1762763885820,0.4227006,106070.0,106060.0,0.25301072]
[1762763886021,0.51518356,106070.0,106060.0,0.25301072]
[1762763886624,0.51518356,106070.0,106060.0,0.40041072]
[1762763887724,0.51518356,106070.0,106060.0,0.30792776]
[1762763887925,0.51518356,106070.0,106060.0,0.40041072]
[1762763888522,0.51518356,106070.0,106060.0,0.48502217]
[1762763888723,0.51518356,106070.0,106060.0,0.39253921]
[1762763888917,0.87598356,106070.0,106060.0,0.48502217]
[1762763889116,0.87598356,106070.0,106060.0,0.39071267]
[1762763889322,0.87598356,106070.0,106060.0,0.29822971]
[1762763891718,0.3638,106070.0,106060.0,0.57750513]
[1762763891924,0.32832,106070.0,106060.0,0.48502217]
[1762763892219,0.32832,106070.0,106060.0,0.57750513]
[1762763892415,0.42080296,106070.0,106060.0,0.48502217]
[1762763892612,0.87590356,106070.0,106060.0,0.29822971]
[1762763894528,0.87590356,106070.0,106060.0,0.39253921]
[1762763894934,0.87589964,106070.0,106060.0,0.29822971]
[1762763897434,0.87589964,106070.0,106060.0,0.21361826]
[1762763897832,0.87589964,106070.0,106060.0,0.29822971]
[1762763898339,0.87589964,106070.0,106060.0,0.15082971]
[1762763899746,0.87589964,106070.0,106060.0,0.0761964]
[1762763900441,0.87589964,106070.0,106060.0,0.06467826]
[1762763900442,0.7834206,106070.0,106060.0,0.06467826]
[1762763900644,0.87589964,106070.0,106060.0,0.06467826]
[1762763901042,0.87589964,106070.0,106060.0,0.1325864]
[1762763901743,0.87589964,106070.0,106060.0,0.06467826]
[1762763901944,0.87589964,106070.0,106060.0,0.1325864]
[1762763902844,0.87589964,106070.0,106060.0,0.07399837]
[1762763903944,0.87589964,106070.0,106060.0,0.0761964]
[1762763905044,0.87589964,106070.0,106060.0,0.00828826]
[1762763905245,0.87589964,106070.0,106060.0,0.00609023]
[1762763911046,0.0943184,106050.0,106040.0,0.05613575]
[1762763911241,1.23371744,106050.0,106040.0,0.05833378]
[1762763911439,1.32619648,106050.0,106040.0,0.08010809]
[1762763911741,1.3777013,106050.0,106040.0,0.01000192]
[1762763911942,1.37779332,106050.0,106040.0,0.01000192]
[1762763912131,1.3262885,106050.0,106040.0,0.01000192]
[1762763912646,1.3272885,106050.0,106040.0,0.01000192]
[1762763913046,1.3292885,106050.0,106040.0,0.01000192]
[1762763913242,1.38107518,106050.0,106030.0,0.06790814]
[1762763913546,0.54760634,106040.0,106030.0,0.07010617]
[1762763913747,0.54760634,106040.0,106030.0,0.07801188]
[1762763914144,0.54760634,106040.0,106030.0,0.11436991]
[1762763914444,1.07588634,106040.0,106030.0,0.06869177]
[1762763915246,1.07688634,106040.0,106030.0,0.06869177]
[1762763916140,1.07888634,106040.0,106030.0,0.06869177]
[1762763916343,1.07888634,106040.0,106030.0,0.01010374]
[1762763916544,0.0943362,106030.0,106020.0,0.12585814]
[1762763916741,0.87293524,106030.0,106020.0,0.12805617]
[1762763917347,0.87293524,106030.0,106020.0,0.00972962]
[1762763917545,0.0943451,106020.0,106010.0,0.22021134]
[1762763917744,0.18694095,106020.0,106010.0,0.12805617]
[1762763918344,0.45526191,106020.0,106010.0,0.05829]
[1762763918650,0.094354,106010.0,106000.0,0.05795]
[1762763918852,0.87299304,106010.0,106000.0,0.06014803]
[1762763919448,0.87299304,106010.0,106000.0,0.15451093]
[1762763919449,0.77863904,106010.0,106000.0,0.15451093]
[1762763919649,0.68616,106010.0,106000.0,0.16449465]
[1762763919845,0.32536,106010.0,106000.0,0.16449465]
[1762763920548,0.32736,106010.0,106000.0,0.16449465]
[1762763920952,0.32836,106010.0,106000.0,0.16449465]
[1762763921146,0.003,106010.0,106000.0,0.16449465]
[1762763921351,0.003,106010.0,106000.0,0.25697369]
[1762763921352,0.32836,106010.0,106000.0,0.25697369]
[1762763921954,0.32836,106010.0,106000.0,0.16449465]
[1762763923249,0.003,106010.0,106000.0,0.61777369]
[1762763923554,0.0002579,106020.0,106010.0,0.152644]
[1762763923746,0.0002579,106020.0,106010.0,0.60812107]
[1762763923747,0.3256579,106020.0,106010.0,0.60812107]
[1762763924342,0.3608,106040.0,106030.0,0.1166362]
[1762763924547,0.7805273,106040.0,106030.0,0.24730327]
[1762763924747,0.4551187,106050.0,106040.0,0.1526173]
[1762763924940,0.7805187,106050.0,106040.0,0.24729437]
[1762763925144,0.7805187,106050.0,106040.0,0.15481533]
[1762763926350,0.7885187,106050.0,106040.0,0.15481533]
[1762763927552,0.7945187,106050.0,106040.0,0.15481533]
[1762763929452,0.88699774,106050.0,106040.0,0.06048803]
[1762763930557,0.0943273,106040.0,106030.0,0.05635109]
[1762763930747,0.54760634,106040.0,106030.0,0.05854912]
[1762763931247,0.54760634,106040.0,106030.0,0.03685912]
[1762763931643,0.54760634,106040.0,106030.0,0.01576912]
[1762763931844,0.55260634,106040.0,106030.0,0.03685912]
[1762763932342,0.55860634,106040.0,106030.0,0.00014109]
[1762763933853,0.6093311,106040.0,106030.0,0.00014109]
[1762763934349,0.65108538,106040.0,106000.0,0.39380372]
[1762763934648,0.45327904,106010.0,106000.0,0.07140175]
[1762763934854,0.77863904,106010.0,106000.0,0.07140175]
[1762763935655,0.77863904,106010.0,106000.0,0.07240175]
[1762763935948,0.68616,106010.0,106000.0,0.16676465]
[1762763936350,0.68616,106010.0,106000.0,0.16576465]
[1762763936547,0.68816,106010.0,106000.0,0.16676465]
[1762763936948,0.87499304,106010.0,106000.0,0.07240175]
[1762763937455,0.78063904,106010.0,106000.0,0.07240175]
[1762763937648,0.78163904,106010.0,106000.0,0.07240175]
[1762763937849,0.68916,106010.0,106000.0,0.16676465]
[1762763938046,0.78163904,106010.0,106000.0,0.16676465]
[1762763938747,0.6892,106010.0,106000.0,0.07240175]
[1762763938954,0.6892,106010.0,106000.0,0.16676465]
[1762763939151,0.6892,106010.0,106000.0,0.07240175]
[1762763939356,0.783554,106010.0,106000.0,0.07240175]
[1762763939555,0.87603304,106010.0,106000.0,0.07240175]
[1762763940349,0.6892,106010.0,106000.0,0.07240175]
[1762763940852,0.783554,106010.0,106000.0,0.07240175]
[1762763941051,0.87603304,106010.0,106000.0,0.07240175]
[1762763941248,0.783554,106010.0,106000.0,0.07240175]
[1762763941946,0.87603304,106010.0,106000.0,0.07240175]
[1762763942254,0.78167904,106010.0,106000.0,0.07240175]
[1762763942651,0.87603304,106010.0,106000.0,0.07240175]
[1762763943159,0.87603304,106010.0,106000.0,0.04948175]
[1762763943558,0.87603304,106010.0,106000.0,0.001]
[1762763945758,0.87603304,106010.0,106000.0,0.00319803]
[1762763945954,0.87603304,106010.0,106000.0,0.02621803]
[1762763946153,0.0943806,105990.0,105970.0,0.37408]
[1762763946355,1.40469777,105980.0,105970.0,0.03703267]
[1762763946560,1.40469777,105980.0,105970.0,0.01401267]
[1762763947059,0.0943896,105970.0,105960.0,0.0363]
[1762763947253,0.18914652,105970.0,105960.0,0.05995267]
[1762763947446,0.18914652,105970.0,105960.0,0.00073267]
[1762763947652,0.09666748,105970.0,105960.0,0.01401267]
[1762763947854,0.18914652,105970.0,105960.0,0.03703267]
[1762763948155,0.09475692,105970.0,105960.0,0.07002052]
[1762763948355,0.19214652,105970.0,105960.0,0.07202052]
[1762763948555,0.09975692,105970.0,105960.0,0.07202052]
[1762763948955,0.09975692,105970.0,105960.0,0.16641902]
[1762763949163,0.09975692,105970.0,105960.0,0.06195267]
[1762763949363,0.09975692,105970.0,105960.0,0.15635117]
[1762763949661,0.33403788,105970.0,105960.0,0.51715117]
[1762763951357,0.42651692,105970.0,105960.0,0.51715117]
[1762763952458,0.33403788,105970.0,105960.0,0.52725954]
[1762763952664,0.42842748,105970.0,105960.0,0.52725954]
[1762763953566,0.33403788,105970.0,105960.0,0.52725954]
[1762763953764,0.52090652,105970.0,105960.0,0.07206104]
[1762763954264,0.52090652,105970.0,105960.0,0.16645964]
[1762763954656,0.33403788,105970.0,105960.0,0.16645964]
[1762763954857,0.33403788,105970.0,105960.0,0.52725964]
[1762763955052,0.33403788,105970.0,105960.0,0.61973868]
[1762763955753,0.33403788,105970.0,105960.0,0.52725964]
[1762763955962,0.33403788,105970.0,105960.0,0.61973868]
[1762763956868,0.33403788,105970.0,105960.0,0.61988341]
[1762763957069,0.33403788,105970.0,105960.0,0.76728341]
[1762763957268,0.42842748,105970.0,105960.0,0.76728341]
[1762763957869,0.33403788,105970.0,105960.0,0.76728341]
[1762763958062,0.33403788,105970.0,105960.0,0.85990718]
[1762763958768,0.52105125,105970.0,105960.0,0.76728341]
[1762763959069,0.42842748,105970.0,105960.0,0.76728341]
[1762763959272,0.52105125,105970.0,105960.0,0.76728341]
[1762763959866,0.52105125,105970.0,105960.0,0.67465964]
[1762763960169,0.52105125,105970.0,105960.0,0.76728341]
[1762763960464,0.42846748,105970.0,105960.0,0.76728341]
[1762763960666,0.52109125,105970.0,105960.0,0.76728341]
[1762763962269,0.52109125,105970.0,105960.0,0.21946104]
[1762763962460,0.52109125,105970.0,105960.0,0.31385954]
[1762763962861,0.52109125,105970.0,105960.0,0.16645954]
[1762763963070,0.52109125,105970.0,105960.0,0.07206104]
[1762763963277,0.52109125,105970.0,105960.0,0.16645954]
[1762763965267,0.52109125,105970.0,105960.0,0.07206104]
[1762763965971,0.33407788,105970.0,105960.0,0.16513954]
[1762763966170,0.42670165,105970.0,105960.0,0.16513954]
[1762763966872,0.42670165,105970.0,105960.0,0.25776331]
[1762763967776,0.00727788,105970.0,105960.0,0.94710708]
[1762763967963,0.33403788,105970.0,105960.0,0.71118708]
[1762763968173,0.33403788,105970.0,105960.0,0.61856331]
[1762763969181,0.52105125,105970.0,105960.0,0.52593954]
[1762763970476,0.42666165,105970.0,105960.0,0.52593954]
[1762763970677,0.42666165,105970.0,105960.0,0.61856331]
[1762763970883,0.00727788,105970.0,105960.0,0.71118708]
[1762763971479,0.33399788,105970.0,105960.0,0.61856331]
[1762763971782,0.33399788,105970.0,105960.0,0.71118708]
[1762763972681,0.33179985,105970.0,105960.0,0.71118708]
[1762763974579,0.33179985,105970.0,105960.0,0.52593954]
[1762763974785,0.45531279,105990.0,105980.0,0.1508006]
[1762763974984,0.78415082,105990.0,105980.0,0.24415704]
[1762763975288,0.42160289,105990.0,105980.0,0.67280337]
[1762763975887,0.42360289,105990.0,105980.0,0.67380337]
[1762763976194,0.51797459,105990.0,105980.0,0.67380337]
[1762763976395,0.51897459,105990.0,105980.0,0.74977242]
[1762763976795,0.51897459,105990.0,105980.0,0.38897242]
[1762763977194,0.51897459,105990.0,105980.0,0.29634865]
[1762763977388,0.51897459,105990.0,105980.0,0.38897242]
[1762763978491,0.51897459,105990.0,105980.0,0.32112609]
[1762763980084,0.42635082,105990.0,105980.0,0.32112609]
[1762763980291,0.42635082,105990.0,105980.0,0.22850222]
[1762763980596,0.42635082,105990.0,105980.0,0.32112599]
[1762763980781,0.51897459,105990.0,105980.0,0.32112599]
[1762763981397,0.51897459,105990.0,105980.0,0.22850222]
[1762763981596,0.51897459,105990.0,105980.0,0.22674549]
[1762763981799,0.87977459,105990.0,105980.0,0.13412172]
[1762763982485,0.97239836,105990.0,105980.0,0.001]
[1762763986499,0.78715082,105990.0,105980.0,0.001]
[1762763986685,0.97239836,105990.0,105980.0,0.01457]
[1762763987800,0.97239836,105990.0,105980.0,0.001]
[1762763993792,0.97239836,105990.0,105980.0,0.01456]
[1762763995103,0.97239836,105990.0,105980.0,0.001]
[1762763997100,0.64575836,105990.0,105980.0,0.001]
[1762763997500,1.50083836,105990.0,105980.0,0.001]
[1762763998204,0.64575836,105990.0,105980.0,0.001]
[1762763998398,1.50083836,105990.0,105980.0,0.001]
[1762764003113,1.50079836,105990.0,105980.0,0.001]
[1762764003313,1.50075836,105990.0,105980.0,0.001]
[1762764004007,0.64575836,105990.0,105980.0,0.001]
[1762764004201,1.50075836,105990.0,105980.0,0.001]
[1762764005304,0.64575836,105990.0,105980.0,0.001]
[1762764005807,1.50071836,105990.0,105980.0,0.001]
[1762764010110,1.52285788,105990.0,105980.0,0.001]
[1762764011015,1.52281788,105990.0,105980.0,0.001]
[1762764011313,1.52277788,105990.0,105980.0,0.001]
[1762764013009,0.66789788,105990.0,105980.0,0.001]
[1762764013212,0.0943805,105980.0,105970.0,0.01356]
[1762764013512,0.45737853,105980.0,105970.0,0.05678267]
[1762764013817,0.45831279,105990.0,105980.0,0.05605]
[1762764013818,0.00314109,105990.0,105980.0,0.05605]
[1762764014114,0.29283945,105990.0,105980.0,0.57988677]
[1762764014308,0.29283945,105990.0,105980.0,0.74608644]
[1762764014508,0.29283945,105990.0,105980.0,0.5780814]
[1762764014706,0.29283945,105990.0,105980.0,0.6724619]
[1762764014910,0.29283945,105990.0,105980.0,0.98391087]
[1762764015212,0.29283945,105990.0,105980.0,1.07653464]
[1762764015516,0.09276486,106000.0,105990.0,0.1504216]
[1762764015718,0.32690109,106000.0,105990.0,0.67241418]
[1762764015912,0.05168669,106010.0,106000.0,0.1504127]
[1762764016112,0.37848669,106010.0,106000.0,0.67233437]
[1762764016312,0.37848669,106010.0,106000.0,0.60456914]
[1762764016513,0.05168669,106010.0,106000.0,1.53303291]
[1762764016715,0.37852669,106010.0,106000.0,1.29719291]
[1762764017013,0.32698109,106020.0,106010.0,0.1504038]
[1762764017216,0.32917912,106020.0,106010.0,0.67224482]
[1762764017610,0.32917912,106020.0,106010.0,0.60456024]
[1762764018119,0.33017912,106020.0,106010.0,0.60456024]
[1762764018709,0.33117912,106020.0,106010.0,0.60656024]
[1762764018912,0.33117912,106020.0,106010.0,0.51393647]
[1762764020022,0.33117912,106020.0,106010.0,0.58162105]
[1762764020217,0.37551912,106020.0,106010.0,0.41958267]
[1762764020523,0.46986402,106020.0,106010.0,0.51393647]
[1762764020818,0.37551912,106020.0,106010.0,0.51393647]
[1762764021009,0.33117912,106020.0,106010.0,0.51393647]
[1762764021611,0.44797402,106020.0,106010.0,0.51393647]
[1762764021815,0.47060402,106020.0,106010.0,0.51393647]
[1762764022021,0.37625912,106020.0,106010.0,0.51393647]
[1762764023024,0.47060402,106020.0,106010.0,0.51393647]
[1762764023212,0.56313855,106020.0,106010.0,0.51393647]
[1762764023515,0.47060402,106020.0,106010.0,0.51393647]
[1762764023820,0.37625912,106020.0,106010.0,0.51393647]
[1762764024410,0.33117912,106020.0,106010.0,0.606471]
[1762764024823,0.33117912,106020.0,106010.0,0.51393647]
[1762764026622,0.44797402,106020.0,106010.0,0.51393647]
[1762764026918,0.33117912,106020.0,106010.0,0.606471]
[1762764029822,0.42552402,106020.0,106010.0,0.51393647]
[1762764030018,0.42552402,106020.0,106010.0,0.606471]
[1762764030325,0.44797402,106020.0,106010.0,0.606471]
[1762764030516,0.44797402,106020.0,106010.0,0.51393647]
[1762764030715,0.47060402,106020.0,106010.0,0.41958267]
[1762764030911,0.47060402,106020.0,106010.0,0.51393647]
[1762764031209,0.47060402,106020.0,106010.0,0.606471]
[1762764031519,0.37625912,106020.0,106010.0,0.606471]
[1762764032019,0.33117912,106020.0,106010.0,0.606471]
[1762764032715,0.32898109,106020.0,106010.0,0.842271]
[1762764032916,0.32898109,106020.0,106010.0,0.989671]
[1762764033220,0.29398109,106020.0,106010.0,0.753871]
[1762764033427,0.29398109,106020.0,106010.0,0.989671]
[1762764034115,0.29398109,106020.0,106010.0,0.753871]
[1762764034629,0.002,106020.0,106010.0,1.589671]
[1762764034820,0.002,106020.0,106010.0,1.228871]
[1762764035019,0.002,106020.0,106010.0,1.950471]
[1762764035620,0.32690109,106030.0,106020.0,0.1391647]
[1762764035823,0.32690109,106030.0,106020.0,0.5932319]
[1762764036127,0.32650109,106030.0,106020.0,0.8290319]
[1762764036817,0.35012109,106030.0,106020.0,0.73749737]
[1762764037013,0.33150109,106030.0,106020.0,0.73749737]
[1762764037224,0.33150109,106030.0,106020.0,0.5942319]
[1762764037423,0.33150109,106030.0,106020.0,0.8300319]
[1762764037623,0.33150109,106030.0,106020.0,0.5942319]
[1762764037829,0.33150109,106030.0,106020.0,0.90585155]
[1762764038016,0.33150109,106030.0,106020.0,0.67005155]
[1762764038222,0.33150109,106030.0,106020.0,0.90585155]
[1762764038820,0.33150109,106030.0,106020.0,0.67005155]
[1762764039021,0.33150109,106030.0,106020.0,0.81745155]
[1762764041323,0.35312109,106030.0,106020.0,0.72491702]
[1762764041627,0.29539078,106030.0,106020.0,0.67005155]
[1762764041831,0.00023575,106040.0,106020.0,0.67005155]
[1762764041832,0.32643575,106040.0,106030.0,0.0985358]
[1762764042023,0.00023575,106040.0,106030.0,0.788363]
[1762764042524,0.00023575,106040.0,106030.0,0.552603]
[1762764042931,0.00023575,106040.0,106030.0,0.788363]
[1762764043136,0.00223575,106040.0,106030.0,0.86104758]
[1762764043630,0.00323575,106040.0,106030.0,0.86104758]
[1762764043829,0.00323575,106040.0,106030.0,0.62528758]
[1762764044431,0.00323575,106040.0,106030.0,0.86104758]
[1762764045524,0.00323575,106040.0,106030.0,0.87797445]
[1762764045726,0.00323575,106040.0,106030.0,0.54967992]
[1762764046033,0.00323575,106040.0,106030.0,0.87797445]
[1762764047327,0.00323575,106040.0,106030.0,0.793363]
[1762764047528,0.00323575,106040.0,106030.0,0.557603]
[1762764047924,0.00323575,106040.0,106030.0,0.793363]
[1762764048834,0.00323575,106040.0,106030.0,0.64221445]
[1762764049034,0.00323575,106040.0,106030.0,0.86108003]
[1762764049236,0.02485575,106040.0,106030.0,0.86108003]
[1762764049638,0.02485575,106040.0,106030.0,0.62532003]
[1762764049936,0.05938575,106040.0,106030.0,0.86108003]
[1762764050629,0.03764575,106040.0,106030.0,0.86108003]
[1762764050831,0.00323575,106040.0,106030.0,1.22532003]
[1762764051024,0.00014109,106050.0,106040.0,0.0985269]
[1762764051221,0.00014109,106050.0,106040.0,1.1145141]
[1762764051432,0.33899,106060.0,106050.0,0.098518]
[1762764051620,0.32616,106060.0,106050.0,0.62026249]
[1762764052630,0.34769,106060.0,106050.0,0.62026249]
[1762764053235,0.35088803,106060.0,106050.0,0.62426249]
[1762764054238,0.36447803,106060.0,106050.0,0.62426249]
[1762764054438,0.38616803,106060.0,106050.0,0.62426249]
[1762764054736,0.38816803,106060.0,106050.0,0.63326249]
[1762764054939,0.38816803,106060.0,106050.0,0.64448973]
[1762764055129,0.38816803,106060.0,106050.0,0.57681244]
[1762764055827,0.57501176,106060.0,106050.0,0.38995991]
[1762764056332,0.57501176,106060.0,106050.0,0.48427801]
[1762764056536,0.48247723,106060.0,106050.0,0.48427801]
[1762764056722,0.48247723,106060.0,106050.0,0.38995991]
[1762764057939,0.93581176,106060.0,106050.0,0.02495991]
[1762764060432,1.53581176,106060.0,106050.0,0.013]
[1762764060632,0.05671,106040.0,106030.0,0.36514109]
[1762764060824,0.57180946,106040.0,106030.0,0.37836326]